Cogmind - Beta 11.1 @@@ ROGUE MODE // 2022.04.23 @ 22:34:39 Player: Plexion Result: Destroyed by G-47 Trooper with Particle Gun Performance ------------- Evolutions (0) 0 Regions Visited (1) 200 Robots Destroyed (8) 40 Value Destroyed (181) 181 Prototype IDs (1) 20 Alien Tech Used (0) 0 Bonus (0) 0 TOTAL SCORE: 441 Bonus ------- None Cogmind --------- Core Integrity 0/250 Matter 300/300 Energy 52/100 System Corruption 0% Temperature Critical (587) Movement Rolling (100) Location -10/Materials Parts ------- > --- POWER (1) -------- (None) > --- PROPULSION (2) --- Compact Wheel Compact Wheel > --- UTILITY (2) ------ Small Storage Unit Targeting Computer > --- WEAPON (2) ------- Advanced Beam Cannon Advanced Beam Cannon > --- INVENTORY (8) ---- Light Ion Engine Light Treads Light Treads Advanced Beam Cannon Advanced Beam Cannon Rocket Launcher Rocket Launcher Peak State ------------ > --- POWER ------------ Ion Engine > --- PROPULSION ------- Compact Wheel Compact Wheel > --- UTILITY ---------- Small Storage Unit Targeting Computer > --- WEAPON ----------- Advanced Beam Cannon Advanced Beam Cannon > --- INVENTORY -------- Light Ion Engine Light Treads Light Treads Advanced Beam Cannon Advanced Beam Cannon Rocket Launcher [Rating: 12] Favorites ----------- Power Ion Engine Engine Ion Engine Propulsion Compact Wheel Treads Light Treads Wheel Compact Wheel Utility Small Storage Unit Storage Small Storage Unit Processor Targeting Computer Protection Propulsion Shielding Weapon Assault Rifle Energy Gun Small Laser Energy Cannon Advanced Beam Cannon Ballistic Gun Assault Rifle Launcher Grenade Launcher Build | -11 -10 ------- Run | Scr Mat Slots Evolved . | . . Power . | . . Propulsion . | . . Utility . | . . Weapon . | . . Parts Attached 13 | 6 7 Power 1 | 1 . Engine 1 | 1 . Core . | . . Reactor . | . . Propulsion 4 | 2 2 Treads 2 | 2 . Leg . | . . Wheel 2 | . 2 Hover . | . . Flight . | . . Utility 3 | 1 2 Device . | . . Storage 1 | 1 . Processor 1 | . 1 Hackware . | . . Protection 1 | . 1 Artifact . | . . Weapon 5 | 2 3 Energy Gun 1 | 1 . Energy Cannon 2 | . 2 Ballistic Gun 1 | 1 . Ballistic Cannon . | . . Launcher 1 | . 1 Special Weapon . | . . Impact Weapon . | . . Slashing Weapon . | . . Piercing Weapon . | . . Special Melee Weapon . | . . Unidentified Prototypes 1 | . 1 Parts Lost 2 | . 2 Power 1 | . 1 Propulsion . | . . Utility . | . . Weapon 1 | . 1 Highest Loss Streak 1 | . 1 To Critical Strikes . | . . Average Slot Usage (%) 92 | . 92 Engine 14 | . 14 Treads 1 | . 1 Wheel 26 | . 26 Storage 14 | . 14 Processor 6 | . 6 Protection 2 | . 2 Energy Gun 7 | . 7 Energy Cannon 10 | . 10 Ballistic Gun 8 | . 8 Naked Turns . | . . Heaviest Build 18 | 13 18 Greatest Support 40 | 40 40 Greatest Overweight (x) . | . . Average Overweight (x) . | . . Largest Inventory Capacity 8 | 8 8 Average Capacity 7 | 6 8 Most Carried 8 | 4 8 Average Carried 4 | 2 5 Final Capacity 8 | 8 8 Final Carried 7 | 4 7 Class Distribution -------------------- 100% | Mutant Dominant Class ---------------- Mutant | -10/Materials Resources | -11 -10 ----------- Run | Scr Mat Matter Collected 372 | 239 133 Remotely . | . . Salvage Created 240 | . 240 Parts 18 | . 18 Haulers Intercepted 1 | . 1 Recyclers Shooed . | . . Parts Field Recycled . | . . Retrieved Matter . | . . Parts Self-Destructed . | . . Prevented . | . . Kills | -11 -10 ------- Run | Scr Mat Combat Hostiles Destroyed 7 | . 7 Guns 3 | . 3 Cannons 1 | . 1 AOE 3 | . 3 Classes Destroyed 3 | . 3 Hauler 1 | . 1 Swarmer 3 | . 3 Grunt 4 | . 4 Best Kill Streak 3 | . 3 Combat Bots Only 3 | . 3 Max Kills in Single Turn 3 | . 3 Gunslinging . | . . Exploded 3 | . 3 Melee . | . . Uniques/NPCs Destroyed . | . . Combat | -11 -10 -------- Run | Scr Mat Damage Taken 612 | . 612 Core 266 | . 266 Absorbed by Shields . | . . Redirected to Shielding 3 | . 3 Core Remaining (%) 100 | 100 . Volleys Fired 26 | . 26 Largest 2 | . 2 Hottest 136 | . 136 Shots Fired 51 | . 51 Gun 28 | . 28 Cannon 22 | . 22 Launcher 1 | . 1 Special . | . . Kinetic 14 | . 14 Thermal 36 | . 36 Explosive 1 | . 1 Electromagnetic . | . . Robot Hit Streak 12 | . 12 Robot Miss Streak 3 | . 3 Penetration Max . | . . Secondary Targets . | . . Shots Hit Robots 35 | . 35 Core Hits 12 | . 12 Critical Kills . | . . Critical Parts Destroyed . | . . Critical Strikes . | . . Melee Attacks . | . . Impact . | . . Slashing . | . . Piercing . | . . Sneak Attacks . | . . Combat Hostiles . | . . Follow-up Attacks . | . . Damage Inflicted 677 | . 677 Guns 278 | . 278 Cannons 223 | . 223 Explosions 176 | . 176 Melee . | . . Ramming . | . . Kinetic 118 | . 118 Thermal 383 | . 383 Explosive 176 | . 176 Electromagnetic . | . . Impact . | . . Slashing . | . . Piercing . | . . Highest Corruption . | . . Average Corruption . | . . Corruption Purged . | . . Corruption Blocked . | . . Overload Shots . | . . Overflow Damage . | . . Projectiles . | . . Explosions . | . . Melee . | . . Knockbacks . | . . Impact . | . . Kinetic . | . . Secondary . | . . Self-Inflicted Damage . | . . Shots . | . . Rammed . | . . Targets Rammed . | . . Kicked . | . . Crushed . | . . Highest Temperature 578 | . 578 Average Temperature 132 | . 132 Received Heat Transfer 252 | . 252 Effects 5 | . 5 Damage (major) 5 | . 5 Siege Activations . | . . Robots Corrupted . | . . Combat Hostiles . | . . Parts Fried . | . . Impact Corruptions . | . . Robots Melted . | . . Combat Hostiles . | . . Parts Melted 1 | . 1 Heat Transferred 757 | . 757 Parts Sabotaged . | . . Parts Stolen . | . . Parts Stripped . | . . Power Chain Reactions . | . . Missiles Intercepted . | . . Alert | -11 -10 ------- Run | Scr Mat Peak Influence 209 | . 209 Initial . | . . Average 83 | . 109 Maximum Alert Level 1 | . 1 Low Security (%) 98 | 100 97 Level 1 1 | . 2 Level 2 . | . . Level 3 . | . . Level 4 . | . . Level 5 . | . . High Security . | . . Max Security . | . . Squads Dispatched 1 | . 1 Investigation . | . . Extermination . | . . Reinforcement 1 | . 1 Assault . | . . Garrison . | . . Intercept . | . . Searches Triggered . | . . Construction Impeded . | . . Haulers Reinforced . | . . Active Scanning Responses . | . . Cargo Convoy Interrupts . | . . Stealth | -11 -10 --------- Run | Scr Mat Distress Signals 3 | . 3 Communications Jammed . | . . Distress Signals . | . . Times Spotted 12 | . 12 Peak Tracking Total 4 | . 4 Tactical Retreats . | . . Traps | -11 -10 ------- Run | Scr Mat Traps Triggered . | . . Indirectly . | . . Trap Hack Attempts . | . . Triggered . | . . Disarmed . | . . Reprogrammed . | . . Reused . | . . Traps Extracted . | . . Installed . | . . Triggered . | . . Machines | -11 -10 ---------- Run | Scr Mat Machines Disabled . | . . Max in Single Turn . | . . Machines Sabotaged . | . . Garrisons Compromised . | . . Overloaded Fab Kills . | . . Hacking | -11 -10 --------- Run | Scr Mat Machines Accessed 2 | . 2 Terminals 2 | . 2 Fabricators . | . . Repair Stations . | . . Recycling Units . | . . Scanalyzers . | . . Garrison Access . | . . Total Hacks 7 | . 7 Successful 2 | . 2 Failed 5 | . 5 Catastrophic 1 | . 1 Database Lockouts . | . . Manual 7 | . 7 Terminals 7 | . 7 Fabricators . | . . Repair Stations . | . . Recycling Units . | . . Scanalyzers . | . . Garrison Access . | . . Terminal Hacks 1 | . 1 Robot Analysis 1 | . 1 Fabricator Hacks . | . . Repair Station Hacks . | . . Recycling Unit Hacks . | . . Scanalyzer . | . . Garrison Access Hacks . | . . Unauthorized Hacks 1 | . 1 Terminals 1 | . 1 Disrupt 1 | . 1 Fabricators . | . . Repair Stations . | . . Recycling Units . | . . Scanalyzers . | . . Garrison Access . | . . Data Cores Recovered . | . . Used . | . . Hacking Detections 2 | . 2 Full Trace Events . | . . Feedback Events . | . . Feedback Blocked . | . . Robot Schematics Acquired . | . . Robots Built . | . . Authchips . | . . Time . | . . Total Robot Build Rating . | . . Part Schematics Acquired . | . . Parts Built . | . . Authchips . | . . Time . | . . Total Part Build Rating . | . . Parts Repaired . | . . Time . | . . Parts Recycled . | . . Recycled Matter . | . . Retrieved Matter . | . . Retrieved Components . | . . Parts Scanalyzed . | . . Part Schematics Acquired . | . . Parts Damaged . | . . Bothacking | -11 -10 ------------ Run | Scr Mat Used RIF Installer . | . . Robots Hacked . | . . Non-combat . | . . Combat . | . . Robot Hacks Applied . | . . Relay Couplers Released . | . . Fabnet Peak Effective % . | . . Robots Rewired . | . . Allies Hacked . | . . Hacks Repelled . | . . Allies | -11 -10 -------- Run | Scr Mat Total Allies . | . . Largest Group . | . . Highest-Rated Group . | . . Highest-Rated Ally . | . . Total Orders . | . . Ally Attacks . | . . Total Damage . | . . Kills . | . . Allies Corrupted . | . . Allies Melted . | . . Intel | -11 -10 ------- Run | Scr Mat Robot Analysis Total 1 | . 1 Derelict Logs Recovered . | . . Drone Launches . | . . Drone Recoveries . | . . Exploration | -11 -10 ------------- Run | Scr Mat Turns Passed 326 | 78 248 Spaces Moved 183 | 43 140 Core 2 | 2 . Treads 44 | 41 3 Legs . | . . Wheels 137 | . 137 Hover . | . . Flight . | . . Fastest Speed 50 | 50 100 Average Speed 113 | 154 101 Slowest Speed 160 | 160 160 Overloaded Moves . | . . Propulsion Burnouts . | . . Robots Hopped . | . . Cave-ins Triggered . | . . Exploration Rate (%) 15 | 4 26 Regions Visited 1 Branch Regions . Pre-discovered Areas . | . . Known Exits Taken . | . . Unknown Exits Taken 1 | 1 . Scrap Searched . | . . Spaces Dug 8 | . 8 Terrain Destroyed 8 | . 8 Melee . | . . Projectile . | . . AOE 8 | . 8 Terrain Rammed . | . . Walls Destroyed . | . . Machines Disabled . | . . Actions | -11 -10 --------- Run | Scr Mat Total 249 | 52 197 Wait 12 | . 12 Move 182 | 42 140 Hop . | . . Pick Up 10 | 4 6 Fast Attach 10 | 6 4 Attach . | . . Detach 1 | . 1 Swap 3 | . 3 Drop 5 | . 5 Fire 26 | . 26 Melee . | . . Ram . | . . Kick . | . . Crush . | . . Escape Stasis . | . . Rewire . | . . Trap . | . . Miscellaneous . | . . Route ------- -11/Scrapyard -10/Materials (discovered 1 exit: [*Mat]) History --------- Turn | Location | Event 15 | -11/Scrapyard | Discovered new exit (range 15) 79 | -11/Scrapyard | Entered Materials 209 | -10/Materials | Core integrity fell below 50% 218 | -10/Materials | Discovered new exit (range 14) 303 | -10/Materials | Build established: Mutant 319 | -10/Materials | Core integrity fell below 20% 327 | -10/Materials | Destroyed by G-47 Trooper with Particle Gun Last Messages --------------- 00247_ Acquired Adv. Beam Cannon. 00247_ U-05 Engineer lays Concrete. 00249_ U-05 Engineer builds a Wall. 00252_ Acquired Rocket Launcher. 00257_ K-01 Serf collects debris. 00262_ U-05 Engineer builds a Wall. 00270_ K-01 Serf collects debris. 00284_ A-02 Transporter sends out distress signal. 00287_ A-02 Transporter destroyed. 00289_ O-16 Technician: "IFF HANDSHAKE FAILED. SECURING TERMINAL." 00291_ Acquired 47 matter. 00296_ ALERT: Hostiles spotted, dispatching reinforcements to Terminal M006. 00320_ Ion Engine destroyed. 00321_ G-34 Mercenary destroyed. 00325_ Overheating: Sml. Storage Unit damaged (-48). 00325_ Overheating: Com. Wheel damaged (-5). 00325_ Overheating: Adv. Beam Cannon damaged (-45). 00326_ Overheating: Adv. Beam Cannon damaged (-27). 00326_ Overheating: Targeting Computer damaged (-7). Map ----- +----------------------------------------------------+ | ??????????????????????????????????? ?# ## | | ???????????????????????? ###+######/### ######+ | | ??????????????????????? | | ??????????????????????? * | | ??????????????????????? %= | | ??????????????????????????????# ###/""####+##### | | ??????????????????????????????# " ! "# ** #? | | ??????????????????????????????# " %% " [ #? | | ??????????????????????????????# ! = #? | | ??????????????????????????????# ! #? | | ??????????????????????????????# # !! #? | | ??????????????????????????????# # #? | | ??????????????????????????????# # "######? | | ??????????????????????????????# # #?????? | | ??????????????????????????????# # #?????? | | ??????????????????????????????# #* = ##?????? | | ??????????????????????????????# # ""#??????? | | ??????????????????????????????# # + #? | | ??????????????????????????????# # # ####### #? | | ?????????????????????????????## ## ???????? | | ??????"" ################### # """ ????? | | ??????"" *| |! # "T" ????? | | ??? ||g = * # """ ????? | | ??? | !%= # """ ????? | | ??????#################g # # """ #???? | | ??????????????????????# @![[## ## #???? | | ??????????????????????# [[ [## ############???? | | ??????????????????????#]][[ [## # #???????? | | ??????????????????????######### + """ #???????? | | ??????????????????????????????# # """ #???????? | | ??????????????????????????????# < # """ #???????? | | ??????????????????????????????# # #???????? | | ??????????????????????????????##### """ #???????? | | ??????????????????????????????????# """ #???????? | | ??????????????????????????????????? """ #???????? | | ??????????????????????????????????? [#???????? | | ???????????????????????????????????####??#???????? | | ?????????????????????????????????????????????????? | | | | | | | | | | | | | | | | | | | | | | | | | +----------------------------------------------------+ Best States ------------- Heat Dissipation 25 Energy Generation 10 Energy Capacity 250 Matter Stores 295 Matter Capacity 300 Sight Range 16 Terrain Scan Density 10 Propulsion Shielding 33 Evasion (%) 40 Targeting Accuracy 5 Recoil Reduction 2 Item Schematics ----------------- None Robot Schematics ------------------ None Fabricated ------------ Nothing Alien Tech Used ----------------- None Achievements -------------- None Challenges ------------ None Game ------ Seed ThermicMinesnifferTerrabomb Manual? 0 Play Time 00:04:33 Cumulative 240.8 hours Start 2022.04.23 @ 22:32:15 End 2022.04.23 @ 22:34:39 Sessions 1 Manual Loads 0 Difficulty Rogue Special Mode None Game No. 334 Rogue 247 Adventurer 87 Explorer 0 Win Type - Total 5 Types 3/0/1/1/0/0/0/0/0 Lore% 69 Gallery% 77 Achievement% 67 Wizard Run 0 Options --------- ASCII 0 Keyboard 1 Movement Numpad Keybinds 0 Fullscreen 1 Font 18/Smallcaps Map View 76x50 Tactical HUD 1 Map Filters NONE Filters NONE Steam 1 RUN: 1291d04a-4103-41fd-a0a9-58b706918ccc